{"text_format":"1","workbook":"xlsx","n_sheets":1,"sheets":["سبتمبر2023"],"not_rendered":{"charts":0,"images":0,"macros":1,"external_links":0,"defined_names":0,"comments":0,"pivot_tables":0},"unopened":[],"bounds":{"document_bytes":16777216,"sheet_cells":100000,"rows_first":2000,"rows_last":500,"rows_between":2000,"halvings":0,"cell_chars":16384,"cell_head_chars":4096},"cells_cut":0,"cells_raw":0,"read":"whole","date_system":"1900"}

{"sheet":"سبتمبر2023","index":0,"n_rows":199,"n_cols":13,"rows_kept":199,"cut":false,"hidden":false,"merged":[[0,0,2,0],[0,1,2,1],[0,2,0,3],[0,4,2,4],[0,5,2,5],[0,12,2,12],[1,2,2,2],[1,3,2,3],[1,10,2,10],[1,11,2,11],[0,6,2,6],[0,7,2,7],[0,8,2,8],[0,9,2,9],[0,10,0,11]]}
["رقم السيارة","نوع السيارة","تاريخ ووقت تسليم السيارة",null,"جهة الطالبة للحركة","الغرض من الاستخدام والحركة","إسم مستلم السيارة","قراءة العداد قبل المهمة","قراءة العداد بعد المهمة","المسافة المقطوعة","تاريخ ووقت الرجوع السيارة",null,"الموظف المعني بالتسجيل"]
[null,null,"التاريخ","الوقت",null,null,null,null,null,null,"التاريخ","الوقت"]
[]
[97,{"$f":"IF(A4=65,\"بيكاب نيسان\",IF(A4=93,\"برادو\",IF(A4=96,\"جالنت\",IF(A4=97,\"برادو\",IF(A4=111,\"برادو\",IF(A4=116,\"نيسان بافندر\",IF(A4=118,\"كرولا\",IF(A4=125,\"نيسان بافندر\",IF(A4=134,\"بيكاب مستوبيشي\",IF(A4=153,\"باص نيسان\",IF(A4=162,\"ابيكاء شفروليه\",IF(A4=233,\"كيا سوبرتاج\",IF(A4=267,\"باص تويوتا\",\"\")))))))))))))","v":"برادو"},{"$f":"IF(A4>1,TODAY(),\"\")","v":"2023-08-17"},{"$f":"IF(C4<>\"\",IF(D4=\"\",NOW(),D4),\"\")","v":45153.475557523147},null,null,null,null,1,{"$f":"I4-H4","v":1},{"$f":"IF(J4>0,TODAY(),\"\")","v":"2023-08-17"},{"$f":"IF(K4<>\"\",IF(L4=\"\",NOW(),L4),\"\")","v":45153.47385613426}]
[93,{"$f":"IF(A5=65,\"بيكاب نيسان\",IF(A5=93,\"برادو\",IF(A5=96,\"جالنت\",IF(A5=97,\"برادو\",IF(A5=111,\"برادو\",IF(A5=116,\"نيسان بافندر\",IF(A5=118,\"كرولا\",IF(A5=125,\"نيسان بافندر\",IF(A5=134,\"بيكاب مستوبيشي\",IF(A5=153,\"باص نيسان\",IF(A5=162,\"ابيكاء شفروليه\",IF(A5=233,\"كيا سوبرتاج\",IF(A5=267,\"باص تويوتا\",\"\")))))))))))))","v":"برادو"},{"$f":"IF(A5>1,TODAY(),\"\")","v":"2023-08-17"},{"$f":"IF(C5<>\"\",IF(D5=\"\",NOW(),D5),\"\")","v":45153.475590509261},null,null,null,null,2,{"$f":"I5-H5","v":2},"2023-08-17",{"$f":"IF(K5<>\"\",IF(L5=\"\",NOW(),L5),\"\")","v":45153.47698472222}]
[111,"برادو","2023-08-17",45153.475608912035,null,null,null,null,3,{"$f":"I6-H6","v":3},"2023-08-17",45153.477000810184]
[125,{"$f":"IF(A7=65,\"بيكاب نيسان\",IF(A7=93,\"برادو\",IF(A7=96,\"جالنت\",IF(A7=97,\"برادو\",IF(A7=111,\"برادو\",IF(A7=116,\"نيسان بافندر\",IF(A7=118,\"كرولا\",IF(A7=125,\"نيسان بافندر\",IF(A7=134,\"بيكاب مستوبيشي\",IF(A7=153,\"باص نيسان\",IF(A7=162,\"ابيكاء شفروليه\",IF(A7=233,\"كيا سوبرتاج\",IF(A7=267,\"باص تويوتا\",\"\")))))))))))))","v":"نيسان بافندر"},"2023-08-17",45153.475621990743,null,null,null,null,4,4,"2023-08-17",45153.477011226852]
[96,"جالنت","2023-08-17",45153.481951967595,null,null,null,null,5,5,"2023-08-17",45153.482038194445]
[96,"جالنت","2023-08-17",45153.488300115743,null,null,null,null,6,{"$f":"I9-H9","v":6},"2023-08-17",45153.499281481483]
[267,"باص تويوتا","2023-08-17",45153.515509027777,null,null,null,null,7,7,"2023-08-17",45153.515850347219]
[233,"كيا سوبرتاج","2023-08-17",45153.550864814817,null,null,null,null,8,8,"2023-08-17",45153.551068749999]
[97,"برادو",null,"",null,null,null,null,9,9,"2023-08-17",45154.329978240741]
[111,"برادو","2023-08-17",45154.329896875002,null,null,null,null,9,9,"2023-08-17",45154.330009606485]
[93,"برادو","2023-08-17",45154.390979976852,null,null,null,null,10,10,"2023-08-17",45154.391042824071]
[97,"برادو","2023-08-17",null,null,null,null,null,null,0,"",""]
[96,"جالنت","2023-08-17",null,null,null,null,null,null,0,"",""]
[125,"نيسان بافندر","2023-08-17",null,null,null,null,null,null,0,"",""]
[118,"كرولا","2023-08-17",null,null,null,null,null,14,14,"2023-08-17",45155.553975115741]
[null,"",null,null,null,null,null,null,null,0]
[null,"",null,null,null,null,null,null,null,0]
[null,"",null,null,null,null,null,null,null,0]
[null,"",null,null,null,null,null,null,null,0]
[null,"",null,null,null,null,null,null,null,0]
[null,"",null,null,null,null,null,null,null,0]
[null,"",null,null,null,null,null,null,null,0]
[null,"",null,null,null,null,null,null,null,0]
[null,"",null,null,null,null,null,null,null,0]
[null,"",null,null,null,null,null,null,null,0]
[null,"",null,null,null,null,null,null,null,0]
[null,"",null,null,null,null,null,null,null,0]
[null,"",null,null,null,null,null,null,null,0]
[null,"",null,null,null,null,null,null,null,0]
[null,"",null,null,null,null,null,null,null,0]
[null,"",null,null,null,null,null,null,null,0]
[null,"",null,null,null,null,null,null,null,0]
[null,"",null,null,null,null,null,null,null,0]
[null,"",null,null,null,null,null,null,null,0]
[null,"",null,null,null,null,null,null,null,0]
[null,"",null,null,null,null,null,null,null,0]
[null,"",null,null,null,null,null,null,null,0]
[null,"",null,null,null,null,null,null,null,0]
[null,"",null,null,null,null,null,null,null,0]
[null,"",null,null,null,null,null,null,null,0]
[null,"",null,null,null,null,null,null,null,0]
[null,"",null,null,null,null,null,null,null,0]
[null,"",null,null,null,null,null,null,null,0]
[null,"",null,null,null,null,null,null,null,0]
[null,"",null,null,null,null,null,null,null,0]
[null,"",null,null,null,null,null,null,null,0]
[null,"",null,null,null,null,null,null,null,0]
[null,"",null,null,null,null,null,null,null,0]
[null,"",null,null,null,null,null,null,null,0]
[null,"",null,null,null,null,null,null,null,0]
[null,"",null,null,null,null,null,null,null,0]
[null,"",null,null,null,null,null,null,null,0]
[null,"",null,null,null,null,null,null,null,0]
[null,"",null,null,null,null,null,null,null,0]
[null,"",null,null,null,null,null,null,null,0]
[null,"",null,null,null,null,null,null,null,0]
[null,"",null,null,null,null,null,null,null,0]
[null,"",null,null,null,null,null,null,null,0]
[null,"",null,null,null,null,null,null,null,0]
[null,"",null,null,null,null,null,null,null,0]
[null,"",null,null,null,null,null,null,null,0]
[null,"",null,null,null,null,null,null,null,0]
[null,"",null,null,null,null,null,null,null,0]
[null,"",null,null,null,null,null,null,null,0]
[null,{"$f":"IF(A68=65,\"بيكاب نيسان\",IF(A68=93,\"برادو\",IF(A68=96,\"جالنت\",IF(A68=97,\"برادو\",IF(A68=111,\"برادو\",IF(A68=116,\"نيسان بافندر\",IF(A68=118,\"كرولا\",IF(A68=125,\"نيسان بافندر\",IF(A68=134,\"بيكاب مستوبيشي\",IF(A68=153,\"باص نيسان\",IF(A68=162,\"ابيكاء شفروليه\",IF(A68=233,\"كيا سوبرتاج\",IF(A68=267,\"باص تويوتا\",\"\")))))))))))))","v":""},null,null,null,null,null,null,null,{"$f":"I68-H68","v":0}]
[null,"",null,null,null,null,null,null,null,0]
[null,"",null,null,null,null,null,null,null,0]
[null,"",null,null,null,null,null,null,null,0]
[null,"",null,null,null,null,null,null,null,0]
[null,"",null,null,null,null,null,null,null,0]
[null,"",null,null,null,null,null,null,null,0]
[null,"",null,null,null,null,null,null,null,0]
[null,"",null,null,null,null,null,null,null,0]
[null,"",null,null,null,null,null,null,null,0]
[null,"",null,null,null,null,null,null,null,0]
[null,"",null,null,null,null,null,null,null,0]
[null,"",null,null,null,null,null,null,null,0]
[null,"",null,null,null,null,null,null,null,0]
[null,"",null,null,null,null,null,null,null,0]
[null,"",null,null,null,null,null,null,null,0]
[null,"",null,null,null,null,null,null,null,0]
[null,"",null,null,null,null,null,null,null,0]
[null,"",null,null,null,null,null,null,null,0]
[null,"",null,null,null,null,null,null,null,0]
[null,"",null,null,null,null,null,null,null,0]
[null,"",null,null,null,null,null,null,null,0]
[null,"",null,null,null,null,null,null,null,0]
[null,"",null,null,null,null,null,null,null,0]
[null,"",null,null,null,null,null,null,null,0]
[null,"",null,null,null,null,null,null,null,0]
[null,"",null,null,null,null,null,null,null,0]
[null,"",null,null,null,null,null,null,null,0]
[null,"",null,null,null,null,null,null,null,0]
[null,"",null,null,null,null,null,null,null,0]
[null,"",null,null,null,null,null,null,null,0]
[null,"",null,null,null,null,null,null,null,0]
[null,"",null,null,null,null,null,null,null,0]
[null,"",null,null,null,null,null,null,null,0]
[null,"",null,null,null,null,null,null,null,0]
[null,"",null,null,null,null,null,null,null,0]
[null,"",null,null,null,null,null,null,null,0]
[null,"",null,null,null,null,null,null,null,0]
[null,"",null,null,null,null,null,null,null,0]
[null,"",null,null,null,null,null,null,null,0]
[null,"",null,null,null,null,null,null,null,0]
[null,"",null,null,null,null,null,null,null,0]
[null,"",null,null,null,null,null,null,null,0]
[null,"",null,null,null,null,null,null,null,0]
[null,"",null,null,null,null,null,null,null,0]
[null,"",null,null,null,null,null,null,null,0]
[null,"",null,null,null,null,null,null,null,0]
[null,"",null,null,null,null,null,null,null,0]
[null,"",null,null,null,null,null,null,null,0]
[null,"",null,null,null,null,null,null,null,0]
[null,"",null,null,null,null,null,null,null,0]
[null,"",null,null,null,null,null,null,null,0]
[null,"",null,null,null,null,null,null,null,0]
[null,"",null,null,null,null,null,null,null,0]
[null,"",null,null,null,null,null,null,null,0]
[null,"",null,null,null,null,null,null,null,0]
[null,"",null,null,null,null,null,null,null,0]
[null,"",null,null,null,null,null,null,null,0]
[null,"",null,null,null,null,null,null,null,0]
[null,"",null,null,null,null,null,null,null,0]
[null,"",null,null,null,null,null,null,null,0]
[null,"",null,null,null,null,null,null,null,0]
[null,"",null,null,null,null,null,null,null,0]
[null,"",null,null,null,null,null,null,null,0]
[null,{"$f":"IF(A132=65,\"بيكاب نيسان\",IF(A132=93,\"برادو\",IF(A132=96,\"جالنت\",IF(A132=97,\"برادو\",IF(A132=111,\"برادو\",IF(A132=116,\"نيسان بافندر\",IF(A132=118,\"كرولا\",IF(A132=125,\"نيسان بافندر\",IF(A132=134,\"بيكاب مستوبيشي\",IF(A132=153,\"باص نيسان\",IF(A132=162,\"ابيكاء شفروليه\",IF(A132=233,\"كيا سوبرتاج\",IF(A132=267,\"باص تويوتا\",\"\")))))))))))))","v":""},null,null,null,null,null,null,null,{"$f":"I132-H132","v":0}]
[null,"",null,null,null,null,null,null,null,0]
[null,"",null,null,null,null,null,null,null,0]
[null,"",null,null,null,null,null,null,null,0]
[null,"",null,null,null,null,null,null,null,0]
[null,"",null,null,null,null,null,null,null,0]
[null,"",null,null,null,null,null,null,null,0]
[null,"",null,null,null,null,null,null,null,0]
[null,"",null,null,null,null,null,null,null,0]
[null,"",null,null,null,null,null,null,null,0]
[null,"",null,null,null,null,null,null,null,0]
[null,"",null,null,null,null,null,null,null,0]
[null,"",null,null,null,null,null,null,null,0]
[null,"",null,null,null,null,null,null,null,0]
[null,"",null,null,null,null,null,null,null,0]
[null,"",null,null,null,null,null,null,null,0]
[null,"",null,null,null,null,null,null,null,0]
[null,"",null,null,null,null,null,null,null,0]
[null,"",null,null,null,null,null,null,null,0]
[null,"",null,null,null,null,null,null,null,0]
[null,"",null,null,null,null,null,null,null,0]
[null,"",null,null,null,null,null,null,null,0]
[null,"",null,null,null,null,null,null,null,0]
[null,"",null,null,null,null,null,null,null,0]
[null,"",null,null,null,null,null,null,null,0]
[null,"",null,null,null,null,null,null,null,0]
[null,"",null,null,null,null,null,null,null,0]
[null,"",null,null,null,null,null,null,null,0]
[null,"",null,null,null,null,null,null,null,0]
[null,"",null,null,null,null,null,null,null,0]
[null,"",null,null,null,null,null,null,null,0]
[null,"",null,null,null,null,null,null,null,0]
[null,"",null,null,null,null,null,null,null,0]
[null,"",null,null,null,null,null,null,null,0]
[null,"",null,null,null,null,null,null,null,0]
[null,"",null,null,null,null,null,null,null,0]
[null,"",null,null,null,null,null,null,null,0]
[null,"",null,null,null,null,null,null,null,0]
[null,"",null,null,null,null,null,null,null,0]
[null,"",null,null,null,null,null,null,null,0]
[null,"",null,null,null,null,null,null,null,0]
[null,"",null,null,null,null,null,null,null,0]
[null,"",null,null,null,null,null,null,null,0]
[null,"",null,null,null,null,null,null,null,0]
[null,"",null,null,null,null,null,null,null,0]
[null,"",null,null,null,null,null,null,null,0]
[null,"",null,null,null,null,null,null,null,0]
[null,"",null,null,null,null,null,null,null,0]
[null,"",null,null,null,null,null,null,null,0]
[null,"",null,null,null,null,null,null,null,0]
[null,"",null,null,null,null,null,null,null,0]
[null,"",null,null,null,null,null,null,null,0]
[null,"",null,null,null,null,null,null,null,0]
[null,"",null,null,null,null,null,null,null,0]
[null,"",null,null,null,null,null,null,null,0]
[null,"",null,null,null,null,null,null,null,0]
[null,"",null,null,null,null,null,null,null,0]
[null,"",null,null,null,null,null,null,null,0]
[null,"",null,null,null,null,null,null,null,0]
[null,"",null,null,null,null,null,null,null,0]
[null,"",null,null,null,null,null,null,null,0]
[null,"",null,null,null,null,null,null,null,0]
[null,"",null,null,null,null,null,null,null,0]
[null,"",null,null,null,null,null,null,null,0]
[null,{"$f":"IF(A196=65,\"بيكاب نيسان\",IF(A196=93,\"برادو\",IF(A196=96,\"جالنت\",IF(A196=97,\"برادو\",IF(A196=111,\"برادو\",IF(A196=116,\"نيسان بافندر\",IF(A196=118,\"كرولا\",IF(A196=125,\"نيسان بافندر\",IF(A196=134,\"بيكاب مستوبيشي\",IF(A196=153,\"باص نيسان\",IF(A196=162,\"ابيكاء شفروليه\",IF(A196=233,\"كيا سوبرتاج\",IF(A196=267,\"باص تويوتا\",\"\")))))))))))))","v":""},null,null,null,null,null,null,null,{"$f":"I196-H196","v":0}]
[null,"",null,null,null,null,null,null,null,0]
[null,""]
[null,""]